[Event "*** Titled Tuesday Blitz"]
[Site "Chess.com"]
[Date "2019.08.06"]
[Round "3"]
[White "Eliwood44"]
[Black "ZZWW18"]
[Result "0-1"]
[WhiteElo "2330"]
[BlackElo "2451"]
[TimeControl "180+2"]
[EndTime "13:36:03 PDT"]
[Termination "ZZWW18 won by checkmate"]

1. d4 {[%clk 0:03:01.9]} 1... Nf6 {[%clk 0:03:00.8]} 2. Bf4 {[%clk 0:03:02.5]}
2... d5 {[%clk 0:03:00.5]} 3. e3 {[%clk 0:03:03]} 3... c6 {[%clk 0:03:01.9]} 4.
c4 {[%clk 0:03:02.9]} 4... Qb6 {[%clk 0:03:02.4]} 5. Qb3 {[%clk 0:03:02.7]} 5...
dxc4 {[%clk 0:03:03.4]} 6. Bxc4 {[%clk 0:03:01]} 6... Qxb3 {[%clk 0:03:04.4]} 7.
Bxb3 {[%clk 0:03:02.1]} 7... Bf5 {[%clk 0:03:04.5]} 8. Nc3 {[%clk 0:02:58.3]}
8... e6 {[%clk 0:03:03.1]} 9. Nf3 {[%clk 0:02:59.2]} 9... Nbd7 {[%clk
0:03:02.2]} 10. h3 {[%clk 0:02:59.9]} 10... h6 {[%clk 0:03:01.1]} 11. O-O {[%clk
0:03:00.4]} 11... Be7 {[%clk 0:02:58.3]} 12. Rfe1 {[%clk 0:03:00.3]} 12... Ne4
{[%clk 0:02:54]} 13. Nxe4 {[%clk 0:03:00.3]} 13... Bxe4 {[%clk 0:02:53.6]} 14.
Nd2 {[%clk 0:03:01.9]} 14... Bg6 {[%clk 0:02:53.8]} 15. Nc4 {[%clk 0:03:02.7]}
15... O-O {[%clk 0:02:47.1]} 16. a3 {[%clk 0:02:58.9]} 16... Bd3 {[%clk
0:02:13.7]} 17. Na5 {[%clk 0:02:56.4]} 17... Ba6 {[%clk 0:02:14.1]} 18. Bd1
{[%clk 0:02:46.8]} 18... Bd8 {[%clk 0:01:56.7]} 19. Nb3 {[%clk 0:02:42.6]} 19...
Bc4 {[%clk 0:01:49.6]} 20. Rc1 {[%clk 0:02:40.5]} 20... Bxb3 {[%clk 0:01:50.3]}
21. Bxb3 {[%clk 0:02:41.1]} 21... Bb6 {[%clk 0:01:50.9]} 22. Bc4 {[%clk
0:02:37.6]} 22... Rac8 {[%clk 0:01:49.2]} 23. b4 {[%clk 0:02:35.8]} 23... a6
{[%clk 0:01:44]} 24. a4 {[%clk 0:02:31.6]} 24... Bc7 {[%clk 0:01:44.5]} 25. Bxc7
{[%clk 0:02:13.2]} 25... Rxc7 {[%clk 0:01:45]} 26. b5 {[%clk 0:02:14.7]} 26...
cxb5 {[%clk 0:01:44.6]} 27. axb5 {[%clk 0:02:13.8]} 27... Rfc8 {[%clk
0:01:44.3]} 28. bxa6 {[%clk 0:01:40.9]} 28... Rxc4 {[%clk 0:01:21]} 29. Rxc4
{[%clk 0:01:32.5]} 29... Rxc4 {[%clk 0:01:18.4]} 30. axb7 {[%clk 0:01:30.4]}
30... Rb4 {[%clk 0:01:18.7]} 31. Rc1 {[%clk 0:01:17.3]} 31... Rxb7 {[%clk
0:01:18.5]} 32. Rc8+ {[%clk 0:01:18.4]} 32... Kh7 {[%clk 0:01:18.4]} 33. Rd8
{[%clk 0:01:20.3]} 33... Nf6 {[%clk 0:01:17.5]} 34. f3 {[%clk 0:01:19.3]} 34...
Rb2 {[%clk 0:01:12.6]} 35. Kh2 {[%clk 0:01:20.4]} 35... Nd5 {[%clk 0:01:13]} 36.
Kg1 {[%clk 0:01:20.9]} 36... Nxe3 {[%clk 0:01:13.6]} 37. Rd7 {[%clk 0:01:20.1]}
37... Rxg2+ {[%clk 0:01:14.1]} 38. Kh1 {[%clk 0:01:21.4]} 38... Kg6 {[%clk
0:01:14.7]} 39. h4 {[%clk 0:01:22.3]} 39... Kh5 {[%clk 0:01:04.9]} 40. d5 {[%clk
0:01:22.9]} 40... Kxh4 {[%clk 0:01:04.3]} 41. Rxf7 {[%clk 0:01:23.2]} 41... Kh3
{[%clk 0:01:02.7]} 42. dxe6 {[%clk 0:01:18]} 42... Rf2 {[%clk 0:01:01.2]} 43.
Rxg7 {[%clk 0:01:18.4]} 43... Rf1+ {[%clk 0:00:56.9]} 44. Rg1 {[%clk 0:01:18.5]}
44... Rxg1+ {[%clk 0:00:57.8]} 45. Kxg1 {[%clk 0:01:20.4]} 45... Nf5 {[%clk
0:00:55.3]} 46. Kf2 {[%clk 0:01:20.2]} 46... Kh4 {[%clk 0:00:55.6]} 47. Ke2
{[%clk 0:01:02.4]} 47... Kg5 {[%clk 0:00:54.8]} 48. e7 {[%clk 0:01:01.9]} 48...
Nxe7 {[%clk 0:00:55.2]} 49. Ke3 {[%clk 0:01:02.4]} 49... Nd5+ {[%clk 0:00:56.3]}
50. Ke4 {[%clk 0:01:03.3]} 50... Nf4 {[%clk 0:00:58.2]} 51. Ke3 {[%clk
0:01:04.2]} 51... h5 {[%clk 0:00:59.7]} 52. Kf2 {[%clk 0:01:04.3]} 52... h4
{[%clk 0:01:01.6]} 53. Kg1 {[%clk 0:01:04.8]} 53... h3 {[%clk 0:01:03.2]} 54.
Kh2 {[%clk 0:01:06.4]} 54... Kh4 {[%clk 0:01:04.5]} 55. Kg1 {[%clk 0:01:07.4]}
55... Kg3 {[%clk 0:01:05.9]} 56. Kh1 {[%clk 0:01:08.4]} 56... Ne2 {[%clk
0:01:04.3]} 57. f4 {[%clk 0:01:08.9]} 57... h2 {[%clk 0:01:05.6]} 58. f5 {[%clk
0:01:10.3]} 58... Kh3 {[%clk 0:01:07]} 59. f6 {[%clk 0:01:10.2]} 59... Ng3#
{[%clk 0:01:08.6]} 0-1

[Event "*** Titled Tuesday Blitz"]
[Site "Chess.com"]
[Date "2019.08.06"]
[Round "3"]
[White "maciek_92"]
[Black "Ginzburg_Yakov"]
[Result "0-1"]
[WhiteElo "2761"]
[BlackElo "2513"]
[TimeControl "180+2"]
[EndTime "13:36:11 PDT"]
[Termination "Ginzburg_Yakov won by resignation"]

1. c4 {[%clk 0:03:01.9]} 1... c6 {[%clk 0:02:23.6]} 2. Nf3 {[%clk 0:03:01.2]}
2... d5 {[%clk 0:02:23.8]} 3. b3 {[%clk 0:03:02.4]} 3... Nf6 {[%clk 0:02:22.9]}
4. Bb2 {[%clk 0:03:03.4]} 4... Bf5 {[%clk 0:02:22.7]} 5. g3 {[%clk 0:03:04.1]}
5... e6 {[%clk 0:02:23.9]} 6. Bg2 {[%clk 0:03:05.3]} 6... Be7 {[%clk 0:02:25]}
7. O-O {[%clk 0:03:03.9]} 7... h6 {[%clk 0:02:26]} 8. d3 {[%clk 0:03:05]} 8...
O-O {[%clk 0:02:27]} 9. Qc2 {[%clk 0:03:05.8]} 9... Nbd7 {[%clk 0:02:25.8]} 10.
Nc3 {[%clk 0:03:04.2]} 10... Bh7 {[%clk 0:02:25.1]} 11. Rad1 {[%clk 0:03:04.4]}
11... Nc5 {[%clk 0:02:10.2]} 12. b4 {[%clk 0:02:52.5]} 12... Na6 {[%clk
0:02:10.3]} 13. a3 {[%clk 0:02:53]} 13... dxc4 {[%clk 0:02:11.1]} 14. e4 {[%clk
0:02:45.8]} 14... cxd3 {[%clk 0:02:12]} 15. Rxd3 {[%clk 0:02:47.7]} 15... Qc7
{[%clk 0:02:04.1]} 16. Nd4 {[%clk 0:02:38.7]} 16... Rad8 {[%clk 0:01:53.2]} 17.
Rfd1 {[%clk 0:02:39.3]} 17... Bxb4 {[%clk 0:01:51.8]} 18. axb4 {[%clk
0:02:28.7]} 18... Nxb4 {[%clk 0:01:52.8]} 19. Qe2 {[%clk 0:02:26.3]} 19... Nxd3
{[%clk 0:01:53.5]} 20. Rxd3 {[%clk 0:02:28.2]} 20... e5 {[%clk 0:01:47.1]} 21.
Nb3 {[%clk 0:02:22.4]} 21... Rxd3 {[%clk 0:01:47.6]} 22. Qxd3 {[%clk 0:02:24.3]}
22... Rd8 {[%clk 0:01:49.2]} 23. Qc4 {[%clk 0:02:21.3]} 23... Qd6 {[%clk
0:01:43.6]} 24. Qa4 {[%clk 0:01:57.8]} 24... a6 {[%clk 0:01:36.5]} 25. h3 {[%clk
0:01:24.7]} 25... Bg6 {[%clk 0:01:35.4]} 26. Qa5 {[%clk 0:01:06.9]} 26... Kh7
{[%clk 0:01:29.6]} 27. Nc5 {[%clk 0:01:04.1]} 27... Qd2 {[%clk 0:01:09.9]} 28.
Qb4 {[%clk 0:00:52.5]} 28... Rd4 {[%clk 0:01:08.9]} 29. Qxb7 {[%clk 0:00:51.1]}
29... Qe1+ {[%clk 0:01:00.2]} 30. Bf1 {[%clk 0:00:47.1]} 30... Rd2 {[%clk
0:00:59.6]} 31. Ne2 {[%clk 0:00:08.7]} 31... Rxe2 {[%clk 0:00:53.4]} 32. Nd3
{[%clk 0:00:10.6]} 32... Qb1 {[%clk 0:00:45.6]} 33. Qb3 {[%clk 0:00:09.4]} 33...
Bxe4 {[%clk 0:00:40.5]} 34. Qc3 {[%clk 0:00:02.1]} 0-1

[Event "*** Titled Tuesday Blitz"]
[Site "Chess.com"]
[Date "2019.08.06"]
[Round "3"]
[White "DACF2905"]
[Black "Mbneu"]
[Result "0-1"]
[WhiteElo "2203"]
[BlackElo "2284"]
[TimeControl "180+2"]
[EndTime "13:36:11 PDT"]
[Termination "Mbneu won by resignation"]

1. e4 {[%clk 0:03:01.9]} 1... c5 {[%clk 0:03:00.1]} 2. Nf3 {[%clk 0:03:02.3]}
2... Nf6 {[%clk 0:03:01.2]} 3. Nc3 {[%clk 0:03:00.1]} 3... d5 {[%clk 0:03:01.3]}
4. exd5 {[%clk 0:03:00.3]} 4... Nxd5 {[%clk 0:03:03.2]} 5. Bc4 {[%clk
0:03:00.8]} 5... Nb6 {[%clk 0:03:03.4]} 6. Be2 {[%clk 0:02:56.8]} 6... Nc6
{[%clk 0:03:04]} 7. O-O {[%clk 0:02:55]} 7... e5 {[%clk 0:03:00.3]} 8. Bb5
{[%clk 0:02:55.3]} 8... f6 {[%clk 0:02:59.3]} 9. Re1 {[%clk 0:02:52.5]} 9... Be7
{[%clk 0:02:59.6]} 10. Bxc6+ {[%clk 0:02:00.3]} 10... bxc6 {[%clk 0:02:59.6]}
11. Nxe5 {[%clk 0:02:01.2]} 11... fxe5 {[%clk 0:03:00.6]} 12. Qh5+ {[%clk
0:02:02.2]} 12... Kf8 {[%clk 0:02:46.3]} 13. Qf3+ {[%clk 0:02:02.2]} 13... Bf6
{[%clk 0:02:45.3]} 14. Qxc6 {[%clk 0:02:02.6]} 14... Kf7 {[%clk 0:01:17]} 15.
Qxc5 {[%clk 0:02:01.3]} 15... Rf8 {[%clk 0:01:15.9]} 16. d3 {[%clk 0:01:48.2]}
16... Kg8 {[%clk 0:01:15.6]} 17. Be3 {[%clk 0:01:47.7]} 17... Bb7 {[%clk
0:01:14.1]} 18. a4 {[%clk 0:01:37.5]} 18... Rc8 {[%clk 0:01:13.3]} 19. Qa5
{[%clk 0:01:38.1]} 19... Nd5 {[%clk 0:01:01.8]} 20. Nxd5 {[%clk 0:01:35.2]}
20... Qxd5 {[%clk 0:01:02.4]} 21. Qxd5+ {[%clk 0:01:36.6]} 21... Bxd5 {[%clk
0:01:04]} 22. Bxa7 {[%clk 0:01:37.9]} 22... Rxc2 {[%clk 0:01:04.1]} 23. b4
{[%clk 0:01:36.3]} 23... e4 {[%clk 0:00:59]} 24. Rad1 {[%clk 0:01:26.8]} 24...
exd3 {[%clk 0:00:52.5]} 25. Rxd3 {[%clk 0:01:26.7]} 25... Bc4 {[%clk 0:00:53.6]}
26. Rf3 {[%clk 0:01:25.2]} 26... Bc3 {[%clk 0:00:48.9]} 27. Rxf8+ {[%clk
0:01:23.8]} 27... Kxf8 {[%clk 0:00:50.8]} 28. Bc5+ {[%clk 0:01:24.6]} 28... Kf7
{[%clk 0:00:51.3]} 29. Re7+ {[%clk 0:01:24.2]} 29... Kf6 {[%clk 0:00:51.8]} 30.
g3 {[%clk 0:00:49.1]} 30... Bd5 {[%clk 0:00:48.3]} 31. Kf1 {[%clk 0:00:41.6]}
31... Bf3 {[%clk 0:00:41.2]} 32. Re1 {[%clk 0:00:04]} 32... Bxe1 {[%clk
0:00:40.7]} 33. Kxe1 {[%clk 0:00:05]} 33... Re2+ {[%clk 0:00:41]} 34. Kf1 {[%clk
0:00:05.7]} 34... Rd2 {[%clk 0:00:39.1]} 0-1

[Event "*** Titled Tuesday Blitz"]
[Site "Chess.com"]
[Date "2019.08.06"]
[Round "3"]
[White "swayamsm"]
[Black "eljanov"]
[Result "0-1"]
[WhiteElo "2497"]
[BlackElo "2797"]
[TimeControl "180+2"]
[EndTime "13:36:13 PDT"]
[Termination "eljanov won by resignation"]

1. d4 {[%clk 0:03:01.9]} 1... Nf6 {[%clk 0:02:59.7]} 2. Nf3 {[%clk 0:03:02.7]}
2... e6 {[%clk 0:03:00.7]} 3. Bf4 {[%clk 0:03:03.9]} 3... b6 {[%clk 0:03:00.3]}
4. e3 {[%clk 0:03:05.2]} 4... Bb7 {[%clk 0:03:01.4]} 5. Nbd2 {[%clk 0:03:04.9]}
5... g6 {[%clk 0:03:01.7]} 6. Bd3 {[%clk 0:03:06.3]} 6... Bg7 {[%clk 0:02:59.3]}
7. a4 {[%clk 0:03:03.4]} 7... a6 {[%clk 0:02:55.7]} 8. h3 {[%clk 0:03:03.3]}
8... O-O {[%clk 0:02:56.3]} 9. a5 {[%clk 0:03:02.5]} 9... b5 {[%clk 0:02:56.9]}
10. c4 {[%clk 0:03:03.7]} 10... bxc4 {[%clk 0:02:57.1]} 11. Nxc4 {[%clk
0:03:05.5]} 11... Nc6 {[%clk 0:02:36.5]} 12. O-O {[%clk 0:03:01.2]} 12... d6
{[%clk 0:02:29.1]} 13. Bh2 {[%clk 0:02:51.1]} 13... Qd7 {[%clk 0:02:25.9]} 14.
Qd2 {[%clk 0:02:39.6]} 14... Rab8 {[%clk 0:02:25.6]} 15. Rfc1 {[%clk 0:02:40]}
15... Ba8 {[%clk 0:02:19.3]} 16. Ng5 {[%clk 0:01:57.5]} 16... h6 {[%clk
0:02:12.3]} 17. Ne4 {[%clk 0:01:57.4]} 17... Nxe4 {[%clk 0:02:10.7]} 18. Bxe4
{[%clk 0:01:58.6]} 18... Nxd4 {[%clk 0:01:58.3]} 19. Bxa8 {[%clk 0:01:06.9]}
19... Nb3 {[%clk 0:01:58.8]} 20. Qd1 {[%clk 0:01:05.6]} 20... Nxc1 {[%clk
0:01:53.5]} 21. Rxc1 {[%clk 0:00:42]} 21... Rxa8 {[%clk 0:01:53.4]} 22. b4
{[%clk 0:00:38.4]} 22... Rab8 {[%clk 0:01:53.1]} 23. Ne5 {[%clk 0:00:37.8]}
23... Bxe5 {[%clk 0:01:50.7]} 24. Bxe5 {[%clk 0:00:38.4]} 24... Rxb4 {[%clk
0:01:47.8]} 25. Bf6 {[%clk 0:00:39.7]} 25... Qb5 {[%clk 0:01:33.7]} 26. Qd2
{[%clk 0:00:35.8]} 26... Rb1 {[%clk 0:01:29.6]} 27. e4 {[%clk 0:00:36.1]} 27...
Rxc1+ {[%clk 0:01:29.8]} 28. Qxc1 {[%clk 0:00:38]} 28... Kh7 {[%clk 0:01:26.3]}
29. Qxc7 {[%clk 0:00:38.3]} 29... Qb1+ {[%clk 0:01:25.9]} 30. Kh2 {[%clk
0:00:39.6]} 30... Qxe4 {[%clk 0:01:27.5]} 31. Qxd6 {[%clk 0:00:36.9]} 31... Rc8
{[%clk 0:01:23.1]} 32. Ba1 {[%clk 0:00:10.7]} 32... g5 {[%clk 0:01:07.4]} 33.
Bd4 {[%clk 0:00:06.8]} 33... Qf4+ {[%clk 0:01:07.3]} 34. Qxf4 {[%clk 0:00:07.4]}
34... gxf4 {[%clk 0:01:08.2]} 35. h4 {[%clk 0:00:08]} 35... Kg6 {[%clk
0:01:08.7]} 36. Kh3 {[%clk 0:00:08.3]} 36... Kf5 {[%clk 0:01:09.8]} 37. f3
{[%clk 0:00:09.4]} 37... h5 {[%clk 0:01:10.4]} 38. Bb6 {[%clk 0:00:08.8]} 38...
e5 {[%clk 0:01:11.1]} 39. Kh2 {[%clk 0:00:07.5]} 39... e4 {[%clk 0:01:12]} 40.
fxe4+ {[%clk 0:00:08.5]} 40... Kxe4 {[%clk 0:01:13.3]} 41. Kg1 {[%clk
0:00:09.7]} 41... f3 {[%clk 0:01:14.3]} 42. gxf3+ {[%clk 0:00:10.6]} 42... Kxf3
{[%clk 0:01:15.5]} 43. Kh2 {[%clk 0:00:10.2]} 43... f5 {[%clk 0:01:15.6]} 44.
Kg1 {[%clk 0:00:11.2]} 44... f4 {[%clk 0:01:16.9]} 45. Kh2 {[%clk 0:00:12.7]}
45... Ke2 {[%clk 0:01:18.1]} 46. Kh3 {[%clk 0:00:11.8]} 46... Rg8 {[%clk
0:01:16.9]} 0-1

[Event "*** Titled Tuesday Blitz"]
[Site "Chess.com"]
[Date "2019.08.06"]
[Round "3"]
[White "valeriocarnicelli"]
[Black "Muracle"]
[Result "0-1"]
[WhiteElo "2414"]
[BlackElo "2637"]
[TimeControl "180+2"]
[EndTime "13:36:16 PDT"]
[Termination "Muracle won by resignation"]

1. e4 {[%clk 0:03:00.5]} 1... c5 {[%clk 0:03:00.6]} 2. Nf3 {[%clk 0:03:01.5]}
2... Nc6 {[%clk 0:03:01.8]} 3. d4 {[%clk 0:03:02.9]} 3... cxd4 {[%clk 0:03:03]}
4. Nxd4 {[%clk 0:03:04.8]} 4... e5 {[%clk 0:03:04.5]} 5. Nb5 {[%clk 0:03:05.7]}
5... d6 {[%clk 0:03:05.8]} 6. N1c3 {[%clk 0:03:06.6]} 6... a6 {[%clk 0:03:07]}
7. Na3 {[%clk 0:03:08]} 7... b5 {[%clk 0:03:08.5]} 8. Nd5 {[%clk 0:03:08.9]}
8... Be7 {[%clk 0:03:09.9]} 9. c3 {[%clk 0:03:08.5]} 9... Nf6 {[%clk 0:03:10.6]}
10. Be3 {[%clk 0:03:07.2]} 10... O-O {[%clk 0:03:11.4]} 11. Bd3 {[%clk 0:02:55]}
11... Ng4 {[%clk 0:03:11]} 12. Bb6 {[%clk 0:02:50.4]} 12... Qd7 {[%clk
0:03:09.8]} 13. h3 {[%clk 0:02:51.4]} 13... Nf6 {[%clk 0:03:09.1]} 14. Nc2
{[%clk 0:02:48.4]} 14... Bd8 {[%clk 0:03:09.3]} 15. Bxd8 {[%clk 0:02:48.3]}
15... Nxd5 {[%clk 0:03:07.1]} 16. exd5 {[%clk 0:02:45.4]} 16... Nxd8 {[%clk
0:03:07.9]} 17. O-O {[%clk 0:02:38.2]} 17... f5 {[%clk 0:03:08.4]} 18. a4 {[%clk
0:02:39.1]} 18... Rb8 {[%clk 0:03:07.9]} 19. axb5 {[%clk 0:02:39.2]} 19... axb5
{[%clk 0:03:09.8]} 20. Nb4 {[%clk 0:02:38.2]} 20... e4 {[%clk 0:03:07.8]} 21.
Be2 {[%clk 0:02:38.5]} 21... f4 {[%clk 0:03:08.9]} 22. Bg4 {[%clk 0:02:38.4]}
22... Qf7 {[%clk 0:03:09.2]} 23. Bxc8 {[%clk 0:02:38.2]} 23... Rxc8 {[%clk
0:03:09.8]} 24. f3 {[%clk 0:02:39.1]} 24... e3 {[%clk 0:03:04.9]} 25. Qd3 {[%clk
0:02:40]} 25... Nb7 {[%clk 0:02:59.6]} 26. Qxb5 {[%clk 0:02:36.3]} 26... Nc5
{[%clk 0:03:00.7]} 27. Qe2 {[%clk 0:02:27.2]} 27... Ra8 {[%clk 0:02:59]} 28. c4
{[%clk 0:02:20.3]} 28... Nb3 {[%clk 0:02:56.9]} 29. Rxa8 {[%clk 0:02:20.7]}
29... Rxa8 {[%clk 0:02:58.8]} 30. Nc6 {[%clk 0:02:21.9]} 30... Qb7 {[%clk
0:02:53.1]} 31. Rd1 {[%clk 0:02:08.3]} 31... Qb6 {[%clk 0:02:49.5]} 32. Kh2
{[%clk 0:02:06.9]} 32... Ra2 {[%clk 0:02:47.1]} 33. Qc2 {[%clk 0:01:50.1]} 33...
Qb7 {[%clk 0:02:29.5]} 34. Qe4 {[%clk 0:01:44.5]} 34... Ra8 {[%clk 0:02:27.5]}
35. Qxf4 {[%clk 0:01:37.8]} 35... Re8 {[%clk 0:02:25.8]} 36. Re1 {[%clk
0:01:37.3]} 36... e2 {[%clk 0:02:21.1]} 37. Qxd6 {[%clk 0:01:16.3]} 37... Qf7
{[%clk 0:02:06.7]} 38. Qg3 {[%clk 0:01:05.2]} 38... Nd2 {[%clk 0:01:58.5]} 39.
Ne5 {[%clk 0:00:54.7]} 39... Qf5 {[%clk 0:01:35.1]} 40. Kh1 {[%clk 0:00:24.8]}
40... Qxe5 {[%clk 0:01:23.3]} 41. Qxe5 {[%clk 0:00:23.3]} 41... Rxe5 {[%clk
0:01:25.2]} 42. d6 {[%clk 0:00:24.8]} 42... Kf7 {[%clk 0:01:26.1]} 43. Kg1
{[%clk 0:00:23.4]} 43... Nxc4 {[%clk 0:01:24.1]} 44. b3 {[%clk 0:00:21.4]} 44...
Nb2 {[%clk 0:01:24.6]} 45. f4 {[%clk 0:00:12.4]} 45... Re4 {[%clk 0:01:22.7]}
0-1

[Event "*** Titled Tuesday Blitz"]
[Site "Chess.com"]
[Date "2019.08.06"]
[Round "3"]
[White "gemarin"]
[Black "Vadim_Biliy"]
[Result "1-0"]
[WhiteElo "2069"]
[BlackElo "2219"]
[TimeControl "180+2"]
[EndTime "13:36:20 PDT"]
[Termination "gemarin won by checkmate"]

1. d4 {[%clk 0:03:01.9]} 1... d5 {[%clk 0:02:59.9]} 2. c4 {[%clk 0:03:01.5]}
2... e6 {[%clk 0:03:00.8]} 3. Nc3 {[%clk 0:03:01.5]} 3... Nf6 {[%clk 0:03:01.4]}
4. Nf3 {[%clk 0:03:01.5]} 4... Be7 {[%clk 0:03:02.2]} 5. Bg5 {[%clk 0:03:01.7]}
5... O-O {[%clk 0:03:02.4]} 6. e3 {[%clk 0:03:02.7]} 6... Ne4 {[%clk 0:03:03.4]}
7. Bxe7 {[%clk 0:01:02.1]} 7... Qxe7 {[%clk 0:03:02.7]} 8. Qb3 {[%clk
0:01:00.1]} 8... Nxc3 {[%clk 0:02:50.8]} 9. bxc3 {[%clk 0:01:00]} 9... c5 {[%clk
0:02:48.4]} 10. Be2 {[%clk 0:00:43.1]} 10... cxd4 {[%clk 0:02:46.3]} 11. cxd4
{[%clk 0:00:43.8]} 11... dxc4 {[%clk 0:02:46.6]} 12. Bxc4 {[%clk 0:00:44]} 12...
Nc6 {[%clk 0:02:47.4]} 13. O-O {[%clk 0:00:42.6]} 13... Na5 {[%clk 0:02:47.2]}
14. Qa4 {[%clk 0:00:42.7]} 14... Nxc4 {[%clk 0:02:47.2]} 15. Qxc4 {[%clk
0:00:43.6]} 15... a6 {[%clk 0:02:36.5]} 16. Rfc1 {[%clk 0:00:42.1]} 16... b5
{[%clk 0:02:35.5]} 17. Qc7 {[%clk 0:00:42.8]} 17... Qa3 {[%clk 0:02:21.2]} 18.
Ne5 {[%clk 0:00:37.5]} 18... h6 {[%clk 0:02:19.4]} 19. Rc2 {[%clk 0:00:27.8]}
19... b4 {[%clk 0:02:16.1]} 20. Rb1 {[%clk 0:00:16.5]} 20... a5 {[%clk 0:02:10]}
21. Qc6 {[%clk 0:00:15]} 21... Ra6 {[%clk 0:02:05.6]} 22. Qb5 {[%clk 0:00:09.3]}
22... Ra8 {[%clk 0:02:00.4]} 23. Rb3 {[%clk 0:00:08.6]} 23... Ba6 {[%clk
0:01:55.9]} 24. Qc6 {[%clk 0:00:06.6]} 24... Rac8 {[%clk 0:01:53.8]} 25. Rxa3
{[%clk 0:00:05.6]} 25... Rxc6 {[%clk 0:01:51.5]} 26. Rxc6 {[%clk 0:00:06.2]}
26... bxa3 {[%clk 0:01:51]} 27. Rxa6 {[%clk 0:00:06.8]} 27... Rb8 {[%clk
0:01:49.9]} 28. g3 {[%clk 0:00:06.6]} 28... Rb2 {[%clk 0:01:49.3]} 29. Rxa5
{[%clk 0:00:07.1]} 29... Rxa2 {[%clk 0:01:50.4]} 30. Nc4 {[%clk 0:00:07.8]}
30... Ra1+ {[%clk 0:01:50.7]} 31. Kg2 {[%clk 0:00:08.5]} 31... a2 {[%clk
0:01:52.3]} 32. Nd2 {[%clk 0:00:07.8]} 32... g5 {[%clk 0:01:49.7]} 33. Ne4
{[%clk 0:00:08.5]} 33... Kg7 {[%clk 0:01:44.2]} 34. Nc3 {[%clk 0:00:09.4]} 34...
g4 {[%clk 0:01:42.2]} 35. Rxa2 {[%clk 0:00:07.8]} 35... Rc1 {[%clk 0:01:43.6]}
36. Ne4 {[%clk 0:00:08.7]} 36... f5 {[%clk 0:01:43.2]} 37. Nc5 {[%clk
0:00:08.8]} 37... Kf6 {[%clk 0:01:43.9]} 38. Ra6 {[%clk 0:00:08.8]} 38... Kf7
{[%clk 0:01:45]} 39. Nxe6 {[%clk 0:00:08.5]} 39... Rc2 {[%clk 0:01:43.7]} 40.
Nf4 {[%clk 0:00:09.2]} 40... Kg7 {[%clk 0:01:40.3]} 41. Rg6+ {[%clk 0:00:08]}
41... Kh7 {[%clk 0:01:41.1]} 42. Rf6 {[%clk 0:00:08.9]} 42... Ra2 {[%clk
0:01:40.2]} 43. Rxf5 {[%clk 0:00:09.6]} 43... Ra7 {[%clk 0:01:40.4]} 44. Re5
{[%clk 0:00:10.3]} 44... Rb7 {[%clk 0:01:40.1]} 45. d5 {[%clk 0:00:11.4]} 45...
Rb2 {[%clk 0:01:39.9]} 46. d6 {[%clk 0:00:11.9]} 46... Rd2 {[%clk 0:01:40.6]}
47. Rd5 {[%clk 0:00:12.9]} 47... Rxd5 {[%clk 0:01:39.8]} 48. Nxd5 {[%clk
0:00:13.1]} 48... Kg7 {[%clk 0:01:41.4]} 49. Nc7 {[%clk 0:00:13.8]} 49... Kf7
{[%clk 0:01:43]} 50. e4 {[%clk 0:00:14.6]} 50... Kf8 {[%clk 0:01:42.8]} 51. e5
{[%clk 0:00:15.4]} 51... Kf7 {[%clk 0:01:44.3]} 52. e6+ {[%clk 0:00:16.1]} 52...
Kf8 {[%clk 0:01:45.5]} 53. e7+ {[%clk 0:00:17.2]} 53... Kf7 {[%clk 0:01:47]} 54.
e8=Q+ {[%clk 0:00:18]} 54... Kf6 {[%clk 0:01:48.1]} 55. Qe7+ {[%clk 0:00:18.1]}
55... Kf5 {[%clk 0:01:48.9]} 56. Qe6+ {[%clk 0:00:18.3]} 56... Kg5 {[%clk
0:01:49.9]} 57. Nd5 {[%clk 0:00:18.6]} 57... h5 {[%clk 0:01:50.6]} 58. Qf6#
{[%clk 0:00:19.8]} 1-0